{"text_format":"1","workbook":"xlsx","n_sheets":1,"sheets":["VA2 2017"],"not_rendered":{"charts":0,"images":1,"macros":1,"external_links":0,"defined_names":1,"comments":1,"pivot_tables":0},"unopened":[],"bounds":{"document_bytes":16777216,"sheet_cells":100000,"rows_first":2000,"rows_last":500,"rows_between":2000,"halvings":0,"cell_chars":16384,"cell_head_chars":4096},"cells_cut":0,"cells_raw":0,"read":"whole","date_system":"1900"}

{"sheet":"VA2 2017","index":0,"n_rows":75,"n_cols":14,"rows_kept":75,"cut":false,"hidden":false,"merged":[[10,0,11,10],[12,5,12,8],[32,0,32,1],[32,2,32,4],[33,0,33,1],[33,2,33,4],[34,0,34,1],[34,2,34,4],[35,0,35,1],[35,2,35,4],[13,0,14,1],[64,9,64,10],[38,2,38,4],[39,0,39,1],[39,2,39,4],[69,5,69,6],[40,0,40,1],[40,2,40,4],[41,0,41,1],[41,2,41,4],[42,0,42,1],[42,2,42,4],[43,2,43,4],[44,0,44,1],[44,2,44,4],[45,0,45,1],[45,2,45,4],[46,0,46,1],[46,2,46,4],[47,0,47,1],[47,2,47,4],[69,7,69,10],[50,0,50,1],[50,2,50,4],[51,0,51,1],[51,2,51,4],[52,2,52,4],[19,0,19,1],[19,2,19,4],[20,0,20,1],[20,2,20,4],[21,0,21,1],[21,2,21,4],[22,0,22,1],[22,2,22,4],[23,0,23,1],[27,0,27,1],[27,2,27,4],[28,0,28,1],[28,2,28,4],[29,0,29,1],[70,5,72,6],[30,0,30,1],[36,0,36,1],[37,0,37,1],[38,0,38,1],[18,0,18,1],[1,4,1,10],[4,4,4,10],[5,4,5,10],[53,2,53,4],[54,2,54,4],[55,2,55,4],[56,2,56,4],[26,2,26,4],[16,2,16,4],[17,2,17,4],[13,2,14,4],[15,2,15,4],[23,2,23,4],[24,2,24,4],[25,2,25,4],[48,2,48,4],[49,2,49,4],[29,2,29,4],[60,0,60,1],[43,0,43,1],[58,0,58,1],[59,0,59,1],[62,2,62,4],[2,4,2,5],[57,2,57,4],[58,2,58,4],[24,0,24,1],[25,0,25,1],[26,0,26,1],[59,2,59,4],[60,2,60,4],[61,2,61,4],[48,0,48,1],[49,0,49,1],[30,2,30,4],[31,2,31,4],[36,2,36,4],[37,2,37,4],[7,5,7,10],[18,2,18,4],[7,0,7,4],[9,0,9,10],[13,9,13,10],[13,8,14,8],[13,7,14,7],[13,5,13,6],[8,14,8,15],[70,7,72,8],[70,9,72,10],[70,4,72,4],[15,0,15,1],[62,0,62,1],[17,0,17,1],[52,0,52,1],[53,0,53,1],[54,0,54,1],[55,0,55,1],[56,0,56,1],[31,0,31,1],[57,0,57,1],[61,0,61,1],[70,2,70,3],[71,1,71,2],[16,0,16,1]]}
[null,null,null,"Erkenningsnr.:"]
[null,null,null,"SHM:"]
[null,null,null,"Dossiernummer:",null,null,null,null,null,"VM/B gecombineerd dossier"]
[null,null,null,"Aandeel:",null,null,null,null,null,null,null,null,"bouw"]
[null,null,null,"Project:",null,null,null,null,null,null,null,null,"infrastructuur"]
["VA2 2017",null,null,"Aannemer:"]
[]
["BOUW/INFRASTRUCTUUR"]
["VERREKENINGAANHANGSEL (WIJZIGINGEN AAN DE OPDRACHT)",null,null,null,null,null,null,null,null,"VA2 NR."]
["(rubriek verrekeningen, punt 2 van het VM/B 2013/2017, 2de deel)"]
["Na overleg met alle partijen brengt de aanemer de hiernavolgende wijzigingen aan de opdracht aan. Bij toepassing van de bepalingen van het contract, worden de desbetreffende kostenverhogingen en -verminderingen vastgesteld op de hierna vermelde bedragen. De wijzigingen geven geen recht op enige bijkomende schadevergoeding, als die niet vermeld is op dit document."]
[]
[null,null,null,null,null,"De cijfers die u in onderstaande kolommen ingeeft, \nmoeten afgerond zijn op twee decimalen!"]
["Artikel",null,"Beschrijving en aard van de wijziging",null,null,"Hoeveelheden",null,"Eenheid","Eenheidsprijs","Bedragen"]
[null,null,null,null,null,"in meer","in min",null,null,"in meer","in min"]
[null,null,null,null,null,null,null,null,null,{"$f":"F16*I16","v":0},{"$f":"G16*I16","v":0}]
[null,null,null,null,null,null,null,null,null,{"$f":"F17*I17","v":0},{"$f":"G17*I17","v":0}]
[null,null,null,null,null,null,null,null,null,0,{"$f":"G18*I18","v":0}]
[null,null,null,null,null,null,null,null,null,0,0]
[null,null,null,null,null,null,null,null,null,0,0]
[null,null,null,null,null,null,null,null,null,0,0]
[null,null,null,null,null,null,null,null,null,0,0]
[null,null,null,null,null,null,null,null,null,0,0]
[null,null,null,null,null,null,null,null,null,0,0]
[null,null,null,null,null,null,null,null,null,0,0]
[null,null,null,null,null,null,null,null,null,0,0]
[null,null,null,null,null,null,null,null,null,0,0]
[null,null,null,null,null,null,null,null,null,0,0]
[null,null,null,null,null,null,null,null,null,0,0]
[null,null,null,null,null,null,null,null,null,0,0]
[null,null,null,null,null,null,null,null,null,0,0]
[null,null,null,null,null,null,null,null,null,0,0]
[null,null,null,null,null,null,null,null,null,{"$f":"F33*I33","v":0},{"$f":"G33*I33","v":0}]
[null,null,null,null,null,null,null,null,null,0,0]
[null,null,null,null,null,null,null,null,null,0,0]
[null,null,null,null,null,null,null,null,null,0,0]
[null,null,null,null,null,null,null,null,null,0,0]
[null,null,null,null,null,null,null,null,null,0,0]
[null,null,null,null,null,null,null,null,null,0,0]
[null,null,null,null,null,null,null,null,null,0,0]
[null,null,null,null,null,null,null,null,null,0,0]
[null,null,null,null,null,null,null,null,null,0,0]
[null,null,null,null,null,null,null,null,null,0,0]
[null,null,null,null,null,null,null,null,null,0,0]
[null,null,null,null,null,null,null,null,null,0,0]
[null,null,null,null,null,null,null,null,null,0,0]
[null,null,null,null,null,null,null,null,null,0,0]
[null,null,null,null,null,null,null,null,null,0,0]
[null,null,null,null,null,null,null,null,null,0,0]
[null,null,null,null,null,null,null,null,null,0,0]
[null,null,null,null,null,null,null,null,null,0,0]
[null,null,null,null,null,null,null,null,null,0,0]
[null,null,null,null,null,null,null,null,null,0,0]
[null,null,null,null,null,null,null,null,null,0,0]
[null,null,null,null,null,null,null,null,null,0,0]
[null,null,null,null,null,null,null,null,null,0,0]
[null,null,null,null,null,null,null,null,null,0,0]
[null,null,null,null,null,null,null,null,null,0,0,null,null,"in meer:"]
[null,null,null,null,null,null,null,null,null,0,0,null,null,"in min:"]
[null,null,null,null,null,null,null,null,null,0,0]
[null,null,null,null,null,null,null,null,null,0,0]
[null,null,null,null,null,null,null,null,null,0,0]
[null,null,null,null,null,null,null,null,null,0,0]
[null,null,null,null,null,null,null,null,"Totaal",{"$f":"SUM(J16:J63)","v":0},{"$f":"SUM(K16:K63)","v":0}]
[null,null,"Aantal bijlagen:",null,null,null,null,null,"Saldo",{"$f":"J64-K64","v":0},null,null,null,"ja"]
[null,null,"Termijnwijziging:",null,null,null,null,null,null,null,null,null,null,"nee"]
[null,null,"Kalenderdagen:"]
[]
[]
[null,null,null,null,"De ontwerper \n","De aannemer \n(of zijn afgevaardigde)",null,"De aanbestedende overheid,\n(handtekening van twee personen die voor de aanbestedende overheid verbintenissen kunnen aangaan)\n"]
["Opgemaakt in"]
["op "]
[]
[]
["Tip: gebruik 'alt + enter' om binnen een cel naar een nieuwe regel te gaan."]